fUSD/lending_fUSD_20250512
["ID","MTS","AMOUNT","RATE_DAILY","PERIOD"]
[360835092,1747059037787,-2673.92,0.00013698,2]
[360835093,1747059037797,-2673.92,0.00013698,2]
[360835094,1747059037806,-531.18,0.00013698,2]
[360835095,1747059037816,-531.18,0.00013698,2]
[360835096,1747059037825,-531.18,0.00013698,2]
[360835097,1747059037835,-442.86,0.00013698,2]
[360835098,1747059037845,-442.86,0.00013698,2]
[360835099,1747059037854,-400.0,0.00013698,2]
[360835100,1747059037864,-400.0,0.00013698,2]
[360835101,1747059037873,-400.0,0.00013698,2]
[360835102,1747059037882,-400.0,0.00013698,2]
[360835103,1747059037892,-472.58,0.00013698,2]
[360835104,1747059037901,-400.0,0.00013698,2]
[360835105,1747059037911,-472.58,0.00013698,2]
[360835106,1747059037920,-472.58,0.00013698,2]
[360835107,1747059037930,-469.92,0.00013698,2]
[360835108,1747059037940,-469.92,0.00013698,2]
[360835109,1747059037952,-469.92,0.00013698,2]
[360835110,1747059037961,-400.0,0.00013698,2]
[360835111,1747059037972,-400.0,0.00013698,2]
[360835112,1747059037983,-400.0,0.00013698,2]
[360835113,1747059037993,-400.0,0.00013698,2]
[360835114,1747059038003,-400.0,0.00013698,2]
[360835115,1747059038013,-400.0,0.00013698,2]
[360835116,1747059038023,-400.0,0.00013698,2]
[360835117,1747059038032,-400.0,0.00013698,2]
[360835118,1747059038042,-400.0,0.00013698,2]
[360835119,1747059038052,-400.0,0.00013698,2]
[360835120,1747059038062,-400.0,0.00013698,2]
[360835122,1747059038072,-783.41,0.00013698,2]
[360835124,1747059038082,-783.41,0.00013698,2]
[360835125,1747059038091,-400.0,0.00013698,2]
[360835126,1747059038101,-400.0,0.00013698,2]
[360835127,1747059038111,-1250.71,0.00013698,2]
[360835128,1747059038121,-1250.71,0.00013698,2]
[360835129,1747059038130,-914.37,0.00013698,2]
[360835130,1747059038140,-914.37,0.00013698,2]
[360835131,1747059038149,-275.47325175,0.00013698,2]
[360835132,1747059038159,-400.0,0.00013698,2]
[360835133,1747059038168,-400.0,0.00013698,2]
[360835134,1747059038178,-1630.03,0.00013698,2]
[360835135,1747059038188,-1630.03,0.00013698,2]
[360835136,1747059038197,-535.73,0.00013698,2]
[360835137,1747059038210,-28904.84483415,0.00013698,2]
[360835138,1747059038224,-49573.57516585,0.00013698,2]
[360835139,1747059038233,-78478.42,0.00013698,2]
[360835140,1747059038242,-400.0,0.00013698,2]
[360835141,1747059038252,-400.0,0.00013698,2]
[360835142,1747059038262,-400.0,0.00013698,2]
[360835143,1747059038271,-400.0,0.00013698,2]
[360835144,1747059038280,-400.0,0.00013698,2]
[360835145,1747059038290,-400.0,0.00013698,2]
[360835146,1747059038300,-400.0,0.00013698,2]
[360835147,1747059038309,-252.1,0.00013698,2]
[360835148,1747059038319,-400.0,0.00013698,2]
[360835149,1747059038328,-2030.1,0.00013698,2]
[360835150,1747059038338,-2030.1,0.00013698,2]
[360835151,1747059038347,-412.76,0.00013698,2]
[360835152,1747059038356,-285.74483381,0.00013698,2]
[360835153,1747059038368,-127.01516619,0.00013698,2]
[360835154,1747059038378,-400.0,0.00013698,2]
[360835155,1747059038388,-400.0,0.00013698,2]
[360835156,1747059038398,-214.47,0.00013698,2]
[360835157,1747059038410,-703.79,0.00013698,2]
[360835158,1747059038421,-703.79,0.00013698,2]
[360835159,1747059038430,-400.0,0.00013698,2]
[360835160,1747059038440,-400.0,0.00013698,2]
[360835161,1747059038453,-400.0,0.00013698,2]
[360835162,1747059038652,-400.0,0.00013698,2]
[360835163,1747059038661,-400.0,0.00013698,2]
[360835164,1747059038671,-459.35,0.00013698,2]
[360835165,1747059038680,-193.17083381,0.00013698,2]
[360835166,1747059038692,-266.17916619,0.00013698,2]
[360835167,1747059038703,-400.0,0.00013698,2]
[360835168,1747059038713,-475.01,0.00013698,2]
[360835169,1747059038722,-401.85,0.00013698,2]
[360835170,1747059038732,-394.54519717,0.00013698,2]
[360835171,1747059038741,-400.0,0.00013698,2]
[360835172,1747059038750,-400.0,0.00013698,2]
[360835173,1747059038759,-400.0,0.00013698,2]
[360835174,1747059038769,-400.0,0.00013698,2]
[360835175,1747059038778,-514.29,0.00013698,2]
[360835176,1747059038788,-400.0,0.00013698,2]
[360835177,1747059038797,-400.0,0.00013698,2]
[360835178,1747059038807,-189.83775292,0.00013698,2]
[360835179,1747059038853,-210.16224708,0.00013698,2]
[360835180,1747059038862,-400.0,0.00013698,2]
[360835181,1747059038871,-400.0,0.00013698,2]
[360835182,1747059038880,-400.0,0.00013698,2]
[360835183,1747059038890,-400.0,0.00013698,2]
[360835184,1747059038899,-684.68,0.00013698,2]
[360835185,1747059038909,-684.68,0.00013698,2]
[360835186,1747059038919,-1244.18,0.00013698,2]
[360835187,1747059038928,-1244.18,0.00013698,2]
[360835188,1747059038937,-400.0,0.00013698,2]
[360835189,1747059038946,-400.0,0.00013698,2]
[360835190,1747059038957,-433.1956965,0.00013698,2]
[360835191,1747059038967,-400.0,0.00013698,2]
[360835192,1747059038976,-400.0,0.00013698,2]
[360835193,1747059038985,-3428.1,0.00013698,2]
[360835194,1747059038994,-1673.82205644,0.00013698,2]
[360835195,1747059039373,-962.08,0.00013698,2]
[360835196,1747059039384,-275.71199979,0.00013698,2]
[360835197,1747059039414,-516.48594377,0.00013698,2]
[360835198,1747059039426,-784.99405623,0.00013698,2]
[360835199,1747059039448,-9836.99594377,0.00013698,2]
[360835200,1747059039460,-10621.99,0.00013698,2]
[360835201,1747059039469,-400.0,0.00013698,2]
[360835202,1747059039479,-400.0,0.00013698,2]
[360835203,1747059039489,-400.0,0.00013698,2]
[360835204,1747059039499,-400.0,0.00013698,2]
[360835205,1747059039509,-400.0,0.00013698,2]
[360835206,1747059039518,-400.0,0.00013698,2]
[360835207,1747059039527,-400.0,0.00013698,2]
[360835208,1747059039537,-400.0,0.00013698,2]
[360835209,1747059039546,-400.0,0.00013698,2]
[360835210,1747059039556,-400.0,0.00013698,2]
[360835211,1747059039565,-400.0,0.00013698,2]
[360835212,1747059039575,-400.0,0.00013698,2]
[360835213,1747059039584,-2310.17,0.00013698,2]
[360835214,1747059039594,-2310.17,0.00013698,2]
[360835215,1747059039604,-400.0,0.00013698,2]
[360835216,1747059039613,-629.99,0.00013698,2]
[360835217,1747059039623,-400.0,0.00013698,2]
[360835218,1747059039632,-400.0,0.00013698,2]
[360835219,1747059039641,-400.0,0.00013698,2]
[360835220,1747059039650,-400.0,0.00013698,2]
[360835221,1747059039659,-400.0,0.00013698,2]
[360835222,1747059039669,-1311.28,0.00013698,2]
[360835223,1747059039678,-1311.28,0.00013698,2]
[360835224,1747059039687,-400.0,0.00013698,2]
[360835226,1747059039697,-400.0,0.00013698,2]
[360835229,1747059039709,-4844.71811525,0.00013698,2]
[360835232,1747059039720,-1784.10286343,0.00013698,2]
[360835235,1747059039875,-8519.21902132,0.00013698,2]
[360835236,1747059039885,-535.16077546,0.00013698,2]
[360835237,1747059039894,-8021.46331292,0.00013698,2]
[360835238,1747059039905,-423.5315121,0.00013698,2]
[360835239,1747059040133,-388.03786282,0.00013698,2]
[360835245,1747059043765,-4061.81004877,0.00013598,2]
[360835246,1747059043775,-6315.00731216,0.00013698,2]
[360835247,1747059043785,-400.0,0.00013698,2]
[360835248,1747059043795,-400.0,0.00013698,2]
[360835249,1747059043805,-400.0,0.00013698,2]
[360835250,1747059043815,-400.0,0.00013698,2]
[360835251,1747059043825,-400.0,0.00013698,2]
[360835252,1747059043835,-1385.71,0.00013698,2]
[360835253,1747059043844,-1385.71,0.00013698,2]
[360835254,1747059043854,-434.24,0.00013698,2]
[360835255,1747059043864,-400.0,0.00013698,2]
[360835256,1747059043873,-400.0,0.00013698,2]
[360835257,1747059043883,-18951.31619027,0.00013698,2]
[360835258,1747059043902,-600.0,0.00013698,2]
[360835259,1747059043913,-210.28380973,0.00013698,2]
[360835260,1747059043923,-1789.71619027,0.00013698,2]
[360835261,1747059043945,-1162.24999,0.00013698,2]
[360835269,1747059045774,-3313.48582321,0.00013698,2]
[360835270,1747059045787,-5839.8207127,0.00013698,2]
[360835271,1747059045799,-2717.1631246,0.00013698,2]
[360835272,1747059045811,-2172.91492049,0.00013698,2]
[360835273,1747059045823,-1205.09999248,0.00013698,2]
[360835274,1747059046144,-1561.14924625,0.00013698,2]
[360835275,1747059046155,-400.0,0.00013698,2]
[360835276,1747059046165,-400.0,0.00013698,2]
[360835277,1747059046175,-400.0,0.00013698,2]
[360835278,1747059046184,-400.0,0.00013698,2]
[360835279,1747059046194,-400.0,0.00013698,2]
[360835280,1747059046204,-400.0,0.00013698,2]
[360835281,1747059046215,-400.0,0.00013698,2]
[360835282,1747059046225,-400.0,0.00013698,2]
[360835283,1747059046234,-400.0,0.00013698,2]
[360835284,1747059046244,-67.85075375,0.00013698,2]
[360835285,1747059046257,-332.14924625,0.00013698,2]
[360835286,1747059046267,-81.06075375,0.00013698,2]
[360835287,1747059046279,-318.93924625,0.00013698,2]
[360835288,1747059046288,-400.0,0.00013698,2]
[360835289,1747059046298,-400.0,0.00013698,2]
[360835290,1747059046308,-400.0,0.00013698,2]
[360835291,1747059046317,-400.0,0.00013698,2]
[360835292,1747059046327,-400.0,0.00013698,2]
[360835293,1747059046337,-400.0,0.00013698,2]
[360835295,1747059046347,-400.0,0.00013698,2]
[360835296,1747059046356,-385.74256128,0.00013698,2]
[360835297,1747059046375,-14.25743872,0.00013698,2]
[360835298,1747059046385,-400.0,0.00013698,2]
[360835299,1747059046394,-400.0,0.00013698,2]
[360835300,1747059046406,-400.0,0.00013698,2]
[360835301,1747059046418,-425.96,0.00013698,2]
[360835302,1747059046428,-400.0,0.00013698,2]
[360835303,1747059046437,-400.0,0.00013698,2]
[360835304,1747059046446,-400.0,0.00013698,2]
[360835305,1747059046458,-400.0,0.00013698,2]
[360835306,1747059046467,-400.0,0.00013698,2]
[360835307,1747059046476,-400.0,0.00013698,2]
[360835308,1747059046485,-342.06382228,0.00013698,2]
[360835309,1747059046495,-400.0,0.00013698,2]
[360835310,1747059046504,-400.0,0.00013698,2]
[360835311,1747059046513,-400.0,0.00013698,2]
[360835312,1747059046522,-400.0,0.00013698,2]
[360835313,1747059046531,-400.0,0.00013698,2]
[360835314,1747059046540,-481.11550004,0.00013698,2]
[360835315,1747059046549,-1000.0,0.00013699,2]
[360835316,1747059046559,-1000.0,0.00013699,2]
[360835317,1747059046568,-1000.0,0.00013699,2]
[360835318,1747059046578,-1000.0,0.00013699,2]
[360835319,1747059046587,-1000.0,0.00013699,2]
[360835320,1747059046597,-1000.0,0.00013699,2]
[360835321,1747059046607,-1000.0,0.00013699,2]
[360835322,1747059046616,-14.29524704,0.00013699,2]
[360835323,1747059046628,-738.30845914,0.00013699,2]
[360835324,1747059046639,-950.96268714,0.00013699,2]
[360835325,1747059046648,-145.80041429,0.00013699,2]
[360835326,1747059046659,-9.21958571,0.00013699,2]
[360835327,1747059046669,-403.18,0.00013699,2]
[360835328,1747059046678,-500.0,0.00013699,2]
[360835329,1747059046688,-500.0,0.00013699,2]
[360835330,1747059046697,-500.0,0.00013699,2]
[360835331,1747059046709,-500.0,0.00013699,2]
[360835332,1747059046718,-500.0,0.00013699,2]
[360835333,1747059046728,-500.0,0.00013699,2]
[360835334,1747059046738,-500.0,0.00013699,2]
[360835335,1747059046747,-474.25756747,0.00013699,2]
[360835336,1747059046761,-500.0,0.00013699,2]
[360835337,1747059046771,-500.0,0.00013699,2]
[360835338,1747059046781,-500.0,0.00013699,2]
[360835339,1747059046792,-200.0,0.00013699,2]
[360835340,1747059046801,-260.83250256,0.00013713,2]
[360835341,1747059077566,1000.0,0.000137,5]
[360835343,1747059079666,1200.0,0.000138,5]
[360835344,1747059081777,200.0,0.000139,5]
[360835349,1747059532318,6000.0,0.00028,120]
[360835357,1747059641165,150.0,0.000145,5]
[360835358,1747059642596,639.84,0.00010731,2]
[360835376,1747059940822,1000.0,0.0001073,2]
[360835378,1747059952308,150.0,0.00013699,7]
[360835384,1747060039199,-2113.868414,0.00012422,2]
[360835385,1747060039223,-1200.0,0.00012485,2]
[360835386,1747060039256,-500.0,0.00012486,2]
[360835387,1747060039289,-500.0,0.00012486,2]
[360835388,1747060039323,-500.0,0.00012486,2]
[360835389,1747060039359,-500.0,0.00012486,2]
[360835390,1747060039396,-500.0,0.00012486,2]
[360835391,1747060039435,-500.0,0.00012486,2]
[360835392,1747060039472,-500.0,0.00012486,2]
[360835393,1747060039510,-500.0,0.00012486,2]
[360835394,1747060039548,-500.0,0.00012486,2]
[360835395,1747060039585,-500.0,0.00012486,2]
[360835396,1747060039622,-527.53259996,0.00012486,2]
[360835397,1747060039658,-500.0,0.00012486,2]
[360835398,1747060039694,-500.0,0.00012486,2]
[360835399,1747060039718,-158.59898604,0.00012591,2]
[360835400,1747060040954,-20.87101396,0.00012591,2]
[360835401,1747060040976,-182.72794443,0.00012622,2]
[360835402,1747060041005,-174.78956854,0.00012622,2]
[360835403,1747060041028,-9621.61147307,0.00012623,2]
[360835404,1747060042362,-9135.76852693,0.00012623,2]
[360835405,1747060042401,-226.61,0.00012662,2]
[360835406,1747060042424,-250.0,0.00012681,2]
[360835407,1747060042447,-387.62147307,0.00012706,2]
[360835408,1747060048383,-1612.37852693,0.00012706,2]
[360835409,1747060048404,-2855.0,0.00012712,2]
[360835410,1747060088495,2313.619733,7.945e-05,2]
[360835411,1747060099621,172.1,0.00010167,2]
[360835412,1747060116883,1000.0,0.00012724,2]
[360835430,1747060219118,225.31265505,0.00028,120]
[360835447,1747060231968,-164.72,0.00012937,2]
[360835448,1747060231978,-250.0,0.00012965,2]
[360835449,1747060231988,-300.0,0.00012994,2]
[360835450,1747060231998,-1200.0,0.00012994,2]
[360835451,1747060232008,-300.0,0.00012994,2]
[360835452,1747060232018,-639.84,0.00012995,2]
[360835453,1747060232027,-1222.53,0.00012995,2]
[360835454,1747060232037,-500.0,0.00012995,2]
[360835455,1747060232047,-180.27,0.00012995,2]
[360835456,1747060232057,-150.0,0.00013098,2]
[360835457,1747060232068,-150.99,0.00013099,2]
[360835458,1747060232077,-3541.87,0.00013099,2]
[360835459,1747060232087,-150.99,0.00013099,2]
[360835460,1747060232097,-1149.5,0.00013099,2]
[360835461,1747060232107,-895.58,0.00013099,2]
[360835462,1747060232117,-8973.6983088,0.00013099,2]
[360835466,1747060232387,-276.79548312,0.00013099,2]
[360835468,1747060232400,-20282.05620808,0.00013099,2]
[360835470,1747060232410,-207.4,0.00013262,2]
[360835471,1747060232420,-98.54379192,0.000135,2]
[360835472,1747060232432,-51.45620808,0.000135,2]
[360835473,1747060232442,-664.51567875,0.000135,2]
[360835478,1747060237921,-335.48432125,0.000135,2]
[360835480,1747060237932,-627.7388118,0.0001353,2]
[360835481,1747060237943,-24476.05266279,0.00013597,2]
[360835482,1747060237957,-26885.03163721,0.00013597,2]
[360835483,1747060237969,-5504.4009,0.00013598,2]
[360835484,1747060237980,-595.56873018,0.00013598,2]
[360835485,1747060237991,-169.01453374,0.00013598,2]
[360835486,1747060238003,-334.50339568,0.00013598,2]
[360835487,1747060238014,-3673.14991759,0.00013598,2]
[360835488,1747060238025,-1000.0,0.00013598,2]
[360835489,1747060238037,-334.50339566,0.00013605,2]
[360835490,1747060238048,-334.50339566,0.00013612,2]
[360835491,1747060238058,-3673.14991757,0.00013624,2]
[360835492,1747060238069,-3673.14991757,0.00013649,2]
[360835493,1747060238080,-156.587,0.00013656,2]
[360835494,1747060238092,-668.65185757,0.00013656,2]
[360835495,1747060238104,-500.61020259,0.00013673,2]
[360835496,1747060238115,-500.0,0.00013673,2]
[360835497,1747060238129,-500.0,0.00013673,2]
[360835498,1747060238144,-500.0,0.00013673,2]
[360835499,1747060238155,-500.0,0.00013673,2]
[360835500,1747060238166,-500.0,0.00013673,2]
[360835501,1747060238177,-192.66689237,0.00013673,2]
[360835502,1747060238188,-212.06444913,0.00013673,2]
[360835503,1747060238199,-3673.14991757,0.00013675,2]
[360835504,1747060238209,-161.52,0.00013687,2]
[360835505,1747060238219,-161.52,0.00013687,2]
[360835506,1747060238230,-161.52,0.00013687,2]
[360835507,1747060238241,-161.52,0.00013688,2]
[360835509,1747060238251,-161.52,0.00013688,2]
[360835511,1747060238261,-161.52,0.00013688,2]
[360835513,1747060238271,-161.52,0.00013688,2]
[360835515,1747060238282,-65894.63978991,0.00013697,2]
[360835516,1747060238297,-1011.21196065,0.00013697,2]
[360835517,1747060238316,-8505.13275986,0.00013697,2]
[360835518,1747060238326,-77154.47099205,0.00013697,2]
[360835519,1747060238336,-300.0,0.00013697,2]
[360835520,1747060238346,-590.15246653,0.00013697,2]
[360835522,1747060238356,-120051.97383472,0.00013698,2]
[360835524,1747060238368,-9608.97740123,0.00013698,2]
[360835526,1747060238384,-5175.0,0.00013698,2]
[360835528,1747060238397,-12509.99999995,0.00013698,2]
[360835531,1747060238408,-500.0,0.00013698,2]
[360835533,1747060238419,-2057.8,0.00013698,2]
[360835536,1747060238438,-2064.8,0.00013698,2]
[360835538,1747060238449,-2061.1,0.00013698,2]
[360835540,1747060238461,-4162.925616,0.00013698,2]
[360835542,1747060238473,-1910.23488341,0.00013698,2]
[360835544,1747060238484,-263432.44130845,0.00013698,2]
[360835545,1747060238494,-400.0,0.00013698,2]
[360835546,1747060238504,-400.0,0.00013698,2]
[360835547,1747060238513,-400.0,0.00013698,2]
[360835548,1747060238524,-400.0,0.00013698,2]
[360835549,1747060238534,-450.39192626,0.00013698,2]
[360835550,1747060238543,-400.0,0.00013698,2]
[360835551,1747060238553,-400.0,0.00013698,2]
[360835552,1747060238563,-400.0,0.00013698,2]
[360835554,1747060238573,-400.0,0.00013698,2]
[360835555,1747060238583,-400.0,0.00013698,2]
[360835556,1747060238592,-400.0,0.00013698,2]
[360835557,1747060238602,-228.15,0.00013698,2]
[360835559,1747060238612,-400.0,0.00013698,2]
[360835560,1747060238622,-315.86997159,0.00013698,2]
[360835561,1747060238635,-400.0,0.00013698,2]
[360835563,1747060238645,-400.0,0.00013698,2]
[360835565,1747060238655,-400.0,0.00013698,2]
[360835567,1747060238664,-400.0,0.00013698,2]
[360835569,1747060238673,-400.0,0.00013698,2]
[360835571,1747060238683,-400.0,0.00013698,2]
[360835573,1747060238692,-400.0,0.00013698,2]
[360835575,1747060238701,-400.0,0.00013698,2]
[360835577,1747060238710,-400.0,0.00013698,2]
[360835579,1747060238719,-400.0,0.00013698,2]
[360835581,1747060238729,-400.0,0.00013698,2]
[360835583,1747060238738,-400.0,0.00013698,2]
[360835585,1747060238748,-400.0,0.00013698,2]
[360835587,1747060238757,-400.0,0.00013698,2]
[360835589,1747060238767,-400.0,0.00013698,2]
[360835591,1747060238776,-400.0,0.00013698,2]
[360835592,1747060238785,-400.0,0.00013698,2]
[360835594,1747060238795,-400.0,0.00013698,2]
[360835596,1747060238805,-400.0,0.00013698,2]
[360835598,1747060238814,-400.0,0.00013698,2]
[360835599,1747060238824,-400.0,0.00013698,2]
[360835602,1747060238833,-443.34,0.00013698,2]
[360835603,1747060238843,-443.34,0.00013698,2]
[360835605,1747060238852,-376.15262169,0.00013698,2]
[360835607,1747060238866,-400.0,0.00013698,2]
[360835608,1747060238875,-400.0,0.00013698,2]
[360835609,1747060238890,-400.0,0.00013698,2]
[360835610,1747060238901,-400.0,0.00013698,2]
[360835611,1747060238914,-400.0,0.00013698,2]
[360835612,1747060238923,-400.0,0.00013698,2]
[360835613,1747060238933,-400.0,0.00013698,2]
[360835614,1747060238942,-300.0,0.00013698,2]
[360835615,1747060238952,-400.0,0.00013698,2]
[360835616,1747060238961,-400.0,0.00013698,2]
[360835617,1747060238971,-379.82935875,0.00013698,2]
[360835618,1747060238981,-400.0,0.00013698,2]
[360835619,1747060238991,-400.0,0.00013698,2]
[360835620,1747060239000,-400.0,0.00013698,2]
[360835621,1747060239011,-400.0,0.00013698,2]
[360835622,1747060239020,-400.0,0.00013698,2]
[360835623,1747060239030,-400.0,0.00013698,2]
[360835624,1747060239039,-400.0,0.00013698,2]
[360835625,1747060239048,-400.0,0.00013698,2]
[360835626,1747060239057,-708.84,0.00013698,2]
[360835627,1747060239067,-708.84,0.00013698,2]
[360835628,1747060239077,-400.0,0.00013698,2]
[360835629,1747060239087,-400.0,0.00013698,2]
[360835630,1747060239096,-400.0,0.00013698,2]
[360835631,1747060239106,-400.0,0.00013698,2]
[360835632,1747060239116,-400.0,0.00013698,2]
[360835633,1747060239126,-400.0,0.00013698,2]
[360835634,1747060239141,-400.0,0.00013698,2]
[360835635,1747060239150,-400.0,0.00013698,2]
[360835636,1747060239162,-400.0,0.00013698,2]
[360835637,1747060239175,-235.26320503,0.00013698,2]
[360835638,1747060239187,-400.0,0.00013698,2]
[360835639,1747060239201,-400.0,0.00013698,2]
[360835640,1747060239215,-1279.063034,0.00013698,2]
[360835641,1747060239226,-400.0,0.00013698,2]
[360835642,1747060239237,-400.0,0.00013698,2]
[360835643,1747060239249,-400.0,0.00013698,2]
[360835644,1747060239261,-279.66488156,0.00013698,2]
[360835645,1747060239273,-20701.58252866,0.00013698,2]
[360835646,1747060239322,-5148.83391713,0.00013698,2]
[360835647,1747060239347,-514.91999994,0.00013698,2]
[360835648,1747060239360,-8499.39215754,0.00013698,2]
[360835664,1747060240176,-360.39949858,0.00013688,2]
[360835665,1747060240189,-1139.60050142,0.00013698,2]
[360835666,1747060240206,-607.46602351,0.00013698,2]
[360835667,1747060240274,-714.06179934,0.00013698,2]
[360835668,1747060240287,-2439.74720309,0.00013698,2]
[360835669,1747060240303,-4930.9037663,0.00013698,2]
[360835670,1747060240377,-3516.79152742,0.00013698,2]
[360835671,1747060240556,-1142.715482,0.00013698,2]
[360835672,1747060240571,-1755.46371,0.00013698,2]
[360835686,1747060244615,-1027.08237139,0.00013698,2]
[360835687,1747060244627,-29141.15433536,0.00013698,2]
[360835688,1747060244643,-11787.7813452,0.00013698,2]
[360835689,1747060244655,-6865.16798434,0.00013698,2]
[360835690,1747060244667,-5243.17614498,0.00013698,2]
[360835691,1747060244679,-1667.03714163,0.00013698,2]
[360835692,1747060244703,-12600.01753332,0.00013698,2]
[360835693,1747060244715,-71282.28507126,0.00013698,2]
[360835694,1747060244840,-3057.6518738,0.00013698,2]
[360835695,1747060244852,-6163.41419395,0.00013698,2]
[360835708,1747060245872,-922.30002,0.00013698,2]
[360835710,1747060245895,-34305.7179236,0.00013698,2]
[360835718,1747060245996,-3212.66273304,0.00013698,2]
[360835728,1747060246094,-8837.76771875,0.00013698,2]
[360835730,1747060246106,-4480.47291394,0.00013698,2]
[360835738,1747060246192,-20853.624,0.00013698,2]
[360835739,1747060246204,-513.75,0.00013698,2]
[360835740,1747060246216,-295.99920458,0.00013698,2]
[360835741,1747060246240,-56893.078,0.00013698,2]
[360835819,1747060281751,1768.86,0.00012799,2]
[360835820,1747060285390,1100.0,0.000137,5]
[360835821,1747060287429,1500.0,0.000138,5]
[360835822,1747060289573,1900.0,0.000139,5]
[360835823,1747060291690,300.0,0.000144,5]
[360835824,1747060296323,278.04174007,0.00012773,2]
[360835825,1747060509430,-182.1197135,0.00012042,2]
[360835826,1747060522289,-230.26925622,0.00012039,2]
[360835827,1747060536073,-225.208019,0.00012039,2]
[360835828,1747060542712,-115.81272478,0.00012039,2]
[360835829,1747060542735,-50.00467152,0.00012042,2]
[360835830,1747060552400,-305.25290289,0.0001202,2]
[360835831,1747060567299,-300.0,0.0001202,2]
[360835832,1747060574922,5000.0,0.000137,5]
[360835833,1747060576819,6300.0,0.000138,5]
[360835834,1747060578930,1200.0,0.000139,5]
[360835835,1747060582274,-238.23859776,0.0001202,2]
[360835836,1747060597432,-74.12849935,0.0001202,2]
[360835837,1747060597461,-342.23319059,0.00012042,2]
[360835838,1747060612294,-252.68798958,0.00012041,2]
[360835840,1747060616872,-298.03206453,0.00012041,2]
[360835842,1747060625273,-203.0143123,0.0001204,2]
[360835843,1747060628261,1844.25311439,0.00028,120]
[360835844,1747060633040,-96.9856877,0.0001204,2]
[360835845,1747060633063,-85.8390646,0.00012041,2]
[360835846,1747060633095,-108.32909639,0.00012041,2]
[360835847,1747060642875,-208.84615131,0.00012041,2]
[360835848,1747060651275,150.0,0.00011779,2]
[360835849,1747060659032,-154.98298479,0.00012041,2]
[360835850,1747060672920,-300.0,0.00011981,2]
[360835851,1747060687335,-274.40376166,0.00011981,2]
[360835852,1747060702304,-175.59623834,0.00011981,2]
[360835853,1747060717313,-159.76,0.00011981,2]
[360835854,1747060732509,-440.24,0.00011941,2]
[360835856,1747060739221,-68.26496247,0.00011941,2]
[360835857,1747060739249,-194.30860344,0.00012005,2]
[360835859,1747060743689,550.02689821,0.00011811,2]
[360835860,1747060743930,-180.30363672,0.00011881,2]
[360835862,1747060747271,-15.92080928,0.00011881,2]
[360835863,1747060747306,-309.56917461,0.00012005,2]
[360835865,1747060751206,-160.49180355,0.00012005,2]
[360835866,1747060751232,-71.14100993,0.00012005,2]
[360835868,1747060757765,-247.68736686,0.00012005,2]
[360835871,1747060762077,-260.88918131,0.00012005,2]
[360835873,1747060766257,-84.6520235,0.00012005,2]
[360835874,1747060766290,-321.52013581,0.00012005,2]
[360835875,1747060767707,-321.52013581,0.00012005,2]
[360835880,1747060774445,-21.32930998,0.00012005,2]
[360835881,1747060774477,-149.17855956,0.00012005,2]
[360835883,1747060778439,-293.49715312,0.00012005,2]
[360835885,1747060782400,-221.69386892,0.00012005,2]
[360835886,1747060782428,-12.76724494,0.00012005,2]
[360835889,1747060790969,-211.81888614,0.00012005,2]
[360835891,1747060796371,-159.76,0.00012005,2]
[360835893,1747060800972,-212.89363672,0.00012005,2]
[360835894,1747060808486,-246.10541782,0.00012004,2]